bitfinex-derivatives/quotes_ETHF0:USTF0_20251118
["timestamp","ask_amount","ask_price","bid_price","bid_amount"]
[1763455030358,2.7794,3058.2,3057.8,0.89771132]
[1763455030657,2.7794,3058.2,3057.9,0.89771132]
[1763455030858,2.7794,3058.2,3057.7,0.53039]
[1763455031058,2.7794,3058.2,3057.8,0.89827946]
[1763455031260,3.3478,3058.2,3057.9,0.89827946]
[1763455031451,6.0,3058.1,3057.1,0.00840899]
[1763455031653,8.3,3058.0,3057.1,0.00840899]
[1763455031954,3.2078,3057.7,3057.1,0.00840899]
[1763455032156,0.5684,3057.6,3057.1,0.00840899]
[1763455032356,3.2078,3057.7,3057.1,0.00840899]
[1763455032550,3.2078,3057.7,3057.4,0.53044]
[1763455032746,3.2078,3057.7,3057.3,0.53046]
[1763455033156,3.2078,3057.7,3057.1,0.00840899]
[1763455033157,3.2078,3057.7,3057.4,0.53045]
[1763455033552,3.2078,3057.7,3057.1,0.00840899]
[1763455033758,0.5684,3057.6,3057.1,0.00840899]
[1763455034956,0.5684,3057.6,3057.2,0.40066895]
[1763455035265,0.5684,3057.6,3057.1,0.00840899]
[1763455035463,3.2078,3057.3,3057.1,0.00840899]
[1763455035763,3.2078,3057.7,3057.1,0.00840899]
[1763455036260,0.5684,3057.6,3057.1,0.53890899]
[1763455036461,0.5684,3057.6,3057.1,0.00840899]
[1763455036962,0.5684,3057.6,3055.9,3.2078]
[1763455036963,3.2078,3057.3,3055.9,3.2078]
[1763455037262,3.2078,3056.5,3055.5,3.2078]
[1763455037460,1.885,3056.4,3055.8,0.53071]
[1763455037657,1.885,3056.4,3055.5,3.2078]
[1763455037863,1.885,3056.4,3055.6,0.00490427]
[1763455037864,0.00490427,3056.3,3055.6,0.00490427]
[1763455038350,0.00490427,3056.3,3056.1,0.53066]
[1763455039860,3.2078,3057.3,3056.2,6.0]
[1763455040061,3.2078,3057.3,3056.6,3.2078]
[1763455040259,3.2078,3057.7,3057.5,0.53043]
[1763455040761,3.2078,3057.7,3057.3,0.53045]
[1763455041067,3.2078,3057.7,3057.0,3.2078]
[1763455041068,3.21037215,3057.7,3057.2,0.00490427]
[1763455041673,3.21037215,3057.7,3057.5,0.53043]
[1763455042168,3.21037215,3057.7,3057.2,0.53538427]
[1763455042362,3.21037215,3057.7,3057.3,0.53046]
[1763455042667,3.21037215,3057.7,3057.2,0.00490427]
[1763455042870,3.21037215,3057.7,3057.5,0.53042]
[1763455043867,3.21037215,3057.7,3057.4,0.53045]
[1763455044063,3.21037215,3057.7,3057.6,0.53041]
[1763455044568,0.00257215,3057.7,3057.5,0.53043]
[1763455045367,0.00257215,3057.7,3057.6,0.90685631]
[1763455046666,0.00257215,3057.7,3057.6,1.17615631]
[1763455047272,0.00257215,3057.7,3057.6,8.72752294]
[1763455047469,0.0346,3058.7,3058.2,0.5303]
[1763455047772,0.0346,3058.7,3058.3,1.3059116]
[1763455047968,2.5566,3058.7,3058.4,1.3059116]
[1763455048168,3.2078,3058.5,3057.9,0.85854485]
[1763455048472,3.2078,3058.1,3057.6,0.85854485]
[1763455048866,3.21614698,3058.5,3057.6,0.85854485]
[1763455049172,3.2078,3058.0,3057.6,0.85854485]
[1763455049369,3.2078,3058.0,3057.7,0.85854485]
[1763455049676,3.256,3057.9,3057.7,0.85854485]
[1763455049875,3.2078,3058.0,3057.8,0.85854485]
[1763455050074,7.491,3057.9,3057.8,0.85854485]
[1763455050277,3.2078,3058.0,3057.8,0.85854485]
[1763455050474,1.891,3058.2,3057.8,1.14472646]
[1763455050769,1.891,3058.2,3058.1,1.14986361]
[1763455051077,3.2078,3058.4,3058.1,0.53032]
[1763455051274,2.484,3058.3,3058.2,1.14969882]
[1763455051974,2.484,3058.3,3058.2,0.86272669]
[1763455053074,8.253,3058.3,3058.2,0.86272669]
[1763455053275,0.00834698,3058.5,3058.2,0.86272669]
[1763455053476,8.249,3058.3,3058.0,1.68003882]
[1763455053676,8.248,3058.3,3058.2,1.14969882]
[1763455053875,8.248,3058.3,3058.1,1.14969882]
[1763455054369,0.00834698,3058.5,3058.1,1.14969882]
[1763455054569,0.00834698,3058.5,3058.2,1.68000882]
[1763455054779,0.00834698,3058.5,3058.1,3.2078]
[1763455054780,0.00834698,3058.5,3058.3,1.67998882]
[1763455054980,0.00834698,3058.5,3058.2,1.14969882]
[1763455055280,0.00834698,3058.5,3058.4,0.86242922]
[1763455055777,0.00834698,3058.5,3058.0,1.14969882]
[1763455055977,2.48,3058.4,3057.9,1.14969882]
[1763455056277,3.2078,3058.4,3057.9,1.14969882]
[1763455056477,3.2078,3058.4,3058.0,1.14969882]
[1763455056677,3.2078,3058.4,3058.3,0.5046]
[1763455057680,3.2078,3058.4,3058.2,1.72846701]
[1763455057876,3.2078,3058.4,3058.3,1.15018486]
[1763455058182,3.2078,3058.4,3058.2,1.15018486]
[1763455058381,3.2078,3058.4,3058.1,1.15018486]
[1763455058685,3.2078,3058.4,3058.0,1.15018486]
[1763455058884,3.2078,3058.4,3058.0,1.68052486]
[1763455059183,8.235,3058.4,3058.1,1.15018486]
[1763455059484,8.235,3058.4,3058.0,1.68052486]
[1763455059779,8.235,3058.4,3058.1,0.53032]
[1763455059971,0.00834698,3058.5,3058.0,1.15018486]
[1763455060173,2.194,3058.4,3058.2,0.5303]
[1763455060375,0.00834698,3058.5,3058.4,0.53028]
[1763455060580,0.00834698,3058.5,3058.4,1.31165278]
[1763455061475,0.00834698,3058.5,3058.4,1.31147627]
[1763455062583,0.00834698,3058.5,3058.4,2.46034449]
[1763455063372,0.00834698,3058.5,3058.4,1.31147627]
[1763455063880,0.00834698,3058.5,3058.4,2.46034449]
[1763455064279,0.00834698,3058.5,3058.4,2.23717627]
[1763455064779,1.23083974,3059.2,3058.4,2.23717627]
[1763455064780,3.2078,3059.7,3059.0,0.5318]
[1763455064979,3.2078,3059.7,3059.5,0.53008]
[1763455065281,3.2078,3059.7,3059.6,1.31147627]
[1763455065482,11.785,3061.0,3059.9,0.53001]
[1763455065483,3.2078,3060.2,3059.9,0.53001]
[1763455065685,3.21025833,3060.2,3060.0,1.31147627]
[1763455065985,3.21025833,3060.2,3060.1,1.31147627]
[1763455066575,0.00245833,3060.2,3060.1,1.31147627]
[1763455066982,0.00490427,3060.4,3060.3,0.52995]
[1763455067181,0.00490427,3060.4,3060.3,1.84142627]
[1763455067580,0.00490427,3060.4,3060.3,1.31147627]
[1763455067988,0.00751438,3060.4,3060.3,1.31147627]
[1763455072485,0.00751438,3060.4,3060.3,0.39714246]
[1763455073692,14.21551438,3060.4,3059.9,0.00365795]
[1763455073896,3.2078,3060.1,3059.2,3.2078]
[1763455074099,8.21551438,3060.4,3058.7,3.2078]
[1763455074100,3.2078,3059.7,3058.7,3.2078]
[1763455074600,3.2078,3059.7,3058.8,0.53021]
[1763455074797,3.2078,3059.7,3058.7,3.2078]
[1763455074997,3.2078,3059.3,3059.0,0.0073953]
[1763455075196,6.146,3059.2,3058.7,3.2078]
[1763455075595,3.2078,3058.9,3058.3,0.5046]
[1763455076099,6.146,3059.2,3058.7,3.2078]
[1763455076398,3.2078,3059.4,3059.0,0.5318]
[1763455076900,3.2078,3059.4,3059.0,1.06197]
[1763455077097,3.2078,3059.4,3059.2,0.53014]
[1763455077494,11.2318,3059.4,3059.2,0.53014]
[1763455077694,3.2078,3059.4,3059.2,0.53014]
[1763455078995,3.2078,3059.4,3059.3,0.8783]
[1763455079311,1.642,3060.2,3059.3,3.2078]
[1763455079600,3.21531438,3060.4,3059.8,3.2078]
[1763455079802,11.28331438,3060.4,3060.2,0.52996]
[1763455080003,11.28331438,3060.4,3060.1,0.52997]
[1763455080190,3.21531438,3060.4,3060.2,0.52996]
[1763455080391,0.861,3060.1,3060.0,0.00490427]
[1763455081698,3.2078,3061.3,3060.9,0.52983]
[1763455081901,3.2078,3061.3,3060.7,3.2078]
[1763455082092,3.2078,3061.3,3061.0,0.52983]
[1763455082403,8.199,3061.6,3061.2,3.2078]
[1763455082910,8.20142476,3061.6,3061.2,0.0039483]
[1763455083206,8.20142476,3061.6,3061.2,0.5337383]
[1763455083902,8.20142476,3061.6,3061.3,0.52977]
[1763455084204,0.00242476,3061.6,3061.5,0.52974]
[1763455084504,0.00242476,3061.6,3061.4,0.52975]
[1763455085506,0.00242476,3061.6,3061.5,0.39084009]
[1763455087303,3.2078,3062.2,3061.5,0.39084009]
[1763455087501,0.5053,3063.9,3062.5,0.4954]
[1763455087707,3.2078,3063.5,3062.7,3.2078]
[1763455087910,3.2078,3063.5,3062.8,0.38991701]
[1763455088100,3.2078,3063.5,3063.1,3.2078]
[1763455088297,3.21039818,3063.5,3063.0,0.00490427]
[1763455088502,0.52945,3063.2,3063.0,0.00490427]
[1763455088808,0.5296,3062.3,3062.2,3.2078]
[1763455089107,3.2078,3063.1,3062.2,3.59748023]
[1763455089301,11.776,3064.0,3062.2,3.59748023]
[1763455089302,2.34174555,3065.3,3062.7,3.2078]
[1763455089500,0.5053,3065.3,3064.3,3.2078]
[1763455089702,0.52911,3065.2,3065.0,3.2078]
[1763455089907,0.52917,3064.8,3064.6,3.2078]
[1763455090206,0.5053,3066.0,3064.7,1.28157391]
[1763455090394,0.52907,3065.4,3065.3,0.04487849]
[1763455091604,0.00487733,3065.7,3065.3,0.43177211]
[1763455091907,0.53390733,3065.7,3065.5,3.2078]
[1763455092498,0.00487733,3065.7,3065.6,0.04487849]
[1763455093423,3.2078,3067.8,3065.7,6.0]
[1763455093605,0.52875,3067.3,3066.9,3.2078]
[1763455093801,0.52878,3067.1,3066.9,3.2078]
[1763455094101,3.824,3067.2,3066.9,3.2078]
[1763455094302,8.343,3067.2,3066.9,3.2078]
[1763455094497,8.87178,3067.1,3066.9,0.00402325]
[1763455094813,0.52878,3067.1,3066.9,3.25e-06]
[1763455095114,0.00275248,3067.2,3066.9,3.25e-06]
[1763455095812,1.0338,3068.8,3067.0,9.26]
[1763455096106,1.0338,3068.8,3066.9,3.25e-06]
[1763455096107,3.2078,3068.4,3067.5,3.2078]
[1763455096312,0.52867,3067.7,3067.5,3.2078]
[1763455096509,3.2078,3067.6,3066.9,3.25e-06]
[1763455097013,0.5053,3067.2,3067.1,3.2078]
[1763455097203,4.9913,3067.2,3066.7,0.0048962]
[1763455097516,0.52883,3066.8,3066.7,0.0048962]
[1763455098011,0.5053,3067.2,3066.7,0.0048962]
[1763455098012,8.88981,3066.9,3066.7,0.0048962]
[1763455098213,0.52881,3066.9,3066.7,0.0079856]
[1763455099116,3.2078,3066.8,3065.5,3.2078]
[1763455099315,3.2078,3065.6,3065.0,3.2078]
[1763455099610,0.5053,3065.4,3064.6,3.2078]
[1763455100004,3.2078,3064.9,3064.2,3.2078]
[1763455100204,3.2078,3064.4,3063.7,3.2078]
[1763455100511,7.927,3064.3,3063.7,3.2078]
[1763455100709,0.00800724,3064.9,3061.8,0.518]
[1763455100710,0.00800724,3064.9,3064.0,3.2078]
[1763455101014,0.00800724,3064.9,3063.6,0.4841]
[1763455101015,8.361,3065.7,3064.8,3.2078]
[1763455101216,3.2078,3065.5,3064.8,3.2078]
[1763455101407,0.6047,3065.4,3064.8,3.2126962]
[1763455101605,8.38,3065.3,3064.8,3.2126962]
[1763455101912,3.2078,3065.0,3064.8,0.00140059]
[1763455102208,8.381,3065.2,3064.8,0.00140059]
[1763455102409,0.00240188,3065.3,3065.1,3.2078]
[1763455103109,1.829,3065.2,3065.1,3.2078]
[1763455103302,0.00240188,3065.3,3065.1,3.2078]
[1763455103507,0.00240188,3065.3,3065.0,3.2078]
[1763455104217,7.12440188,3065.3,3065.0,3.2078]
[1763455104717,0.00240188,3065.3,3065.0,3.2078]
[1763455105018,8.381,3065.2,3065.0,3.2078]
[1763455105312,0.00240188,3065.3,3065.0,3.2078]
[1763455105618,0.00240188,3065.3,3065.1,0.52912]
[1763455105811,0.00240188,3065.3,3065.0,3.2078]
[1763455106215,0.00240188,3065.3,3065.1,0.52911]
[1763455106413,0.00240188,3065.3,3065.0,3.2078]
[1763455107117,0.00240188,3065.3,3065.0,3.73693]
[1763455107513,2.34174555,3069.9,3065.0,3.2078]
[1763455107514,3.2078,3066.5,3065.0,3.2078]
[1763455107710,3.2078,3066.5,3065.8,3.2078]
[1763455108117,3.2078,3066.5,3065.8,3.73679]
[1763455108315,3.2078,3066.5,3065.8,3.2078]
[1763455108512,3.21166034,3066.5,3065.8,3.2078]
[1763455108718,3.21655654,3066.5,3065.8,3.2078]
[1763455109418,4.156,3066.4,3065.8,3.2078]
[1763455109618,4.7987,3066.4,3065.8,3.2078]
[1763455109923,8.363,3066.3,3065.8,3.2078]
[1763455110126,3.2078,3066.1,3065.4,3.2078]
[1763455110620,0.6427,3065.6,3065.0,3.2078]
[1763455110813,3.2078,3065.7,3065.2,0.5291]
[1763455111019,3.2078,3066.1,3065.0,3.73693]
[1763455111223,3.2078,3066.1,3065.0,3.2078]
[1763455111416,3.2078,3065.7,3065.0,3.2078]
[1763455111722,8.359,3065.6,3065.0,3.73693]
[1763455111923,8.359,3065.6,3065.0,3.2078]
[1763455112124,3.2078,3066.1,3065.0,3.2078]
[1763455112316,1.953,3066.0,3065.0,3.2078]
[1763455112514,1.953,3066.0,3065.1,0.38560986]
[1763455112822,1.953,3066.0,3064.9,0.0048962]
[1763455112823,3.2078,3065.2,3064.9,0.0048962]
[1763455113224,8.356,3065.1,3064.9,0.0048962]
[1763455113526,8.356,3065.0,3064.9,0.0048962]
[1763455113716,8.356,3065.0,3064.9,0.39116354]
[1763455114522,8.356,3065.0,3064.0,4.35462898]
[1763455114723,8.356,3065.0,3064.1,1.27692091]
[1763455114724,3.8505,3064.8,3064.1,1.27692091]
[1763455114925,3.8505,3064.8,3064.2,0.88985389]
[1763455115132,0.6427,3065.6,3064.6,0.5292]
[1763455115133,10.9938,3065.2,3064.6,0.5292]
[1763455115328,10.9938,3065.2,3064.7,0.88985389]
[1763455115628,10.9938,3065.2,3064.8,0.88985389]
[1763455115818,10.9938,3065.2,3064.7,0.00420583]
[1763455116020,3.2078,3065.2,3064.7,0.00420583]
[1763455116220,1.949,3065.1,3064.8,1.73388797]
[1763455116422,0.0048962,3065.3,3064.9,0.88533251]
[1763455116617,0.0048962,3065.3,3064.8,1.37772546]
[1763455116618,7.596,3065.2,3065.0,0.88533251]
[1763455116820,7.596,3065.2,3065.1,0.88533251]
[1763455117226,16.8038,3065.2,3065.1,3.251e-05]
[1763455117420,16.8038,3065.2,3064.7,1.15103481]
[1763455117421,17.5588,3065.2,3064.7,0.00420583]
[1763455117629,3.8505,3064.8,3064.7,0.00420583]
[1763455117828,3.8505,3064.8,3064.1,0.84855546]
[1763455117829,9.8505,3064.8,3064.1,0.84855546]
[1763455118125,0.0048962,3065.3,3064.4,3.2078]
[1763455118329,3.2078,3066.9,3066.3,0.52889]
[1763455118523,0.6427,3068.0,3066.4,3.2078]
[1763455118721,0.6427,3068.0,3067.2,3.2078]
[1763455118924,0.6427,3067.2,3066.8,3.2078]
[1763455119328,0.6427,3067.2,3066.9,0.85070519]
[1763455119529,0.64512712,3067.2,3066.9,0.8534312]
[1763455120331,0.64512712,3067.2,3067.1,0.85070519]
[1763455121831,3.90512713,3067.2,3066.3,3.2078]
[1763455122031,0.6427,3066.3,3065.9,3.2078]
[1763455122228,8.403,3066.2,3065.9,3.2078]
[1763455122442,3.2078,3066.0,3065.1,1.70141038]
[1763455122638,3.8505,3065.6,3065.0,3.2078]
[1763455122949,3.8553962,3065.6,3065.0,0.00741878]
[1763455123139,3.2078,3065.2,3065.0,0.00741878]
[1763455123443,8.401,3065.1,3064.5,3.2078]
[1763455124037,7.374,3065.0,3064.5,3.2078]
[1763455124346,7.37717311,3065.0,3064.5,4.91250033]
[1763455124542,0.00317311,3065.0,3064.5,4.91250033]
[1763455125044,0.00317311,3065.0,3064.9,3.2078]
[1763455125237,0.0048962,3065.6,3065.0,0.52913]
[1763455125545,3.2078,3066.7,3065.3,5.50060919]
[1763455125843,3.2078,3066.7,3066.2,0.52892]
[1763455126146,3.2078,3067.3,3066.1,3.2078]
[1763455126338,0.00390131,3066.7,3066.1,3.2078]
[1763455126548,0.00390131,3066.7,3066.6,3.2078]
[1763455126739,0.0346,3068.7,3066.6,3.2078]
[1763455126740,3.2078,3068.2,3066.6,3.59542057]
[1763455127042,3.2078,3066.7,3066.1,1.70444454]
[1763455127258,3.2078,3066.2,3066.0,0.0048962]
[1763455127746,3.21170468,3066.2,3066.0,0.0048962]
[1763455129346,3.21170468,3066.2,3066.1,0.87040415]
[1763455129548,5.71270468,3066.2,3066.1,0.87040415]
[1763455130246,5.71270468,3066.2,3066.0,0.0048962]
[1763455130546,6.0,3066.1,3065.0,3.2078]
[1763455130747,3.8505,3065.4,3064.4,4.91224454]
[1763455130941,3.2078,3065.2,3064.4,3.2078]
[1763455131140,8.397,3065.1,3064.4,3.2078]
[1763455131341,8.397,3065.1,3064.5,0.00818615]
[1763455132851,8.393,3065.0,3064.5,0.00818615]
[1763455133345,2.4152487,3065.2,3064.5,0.00818615]
[1763455133646,1.303,3065.6,3065.1,3.2078]
[1763455133945,1.303,3065.6,3064.7,3.2078]
[1763455134743,0.6427,3065.4,3064.7,3.2078]
[1763455134949,3.2078,3065.2,3064.7,3.2078]
[1763455135143,3.2078,3065.2,3064.5,0.00818615]
[1763455135748,2.262,3065.1,3064.5,0.00818615]
[1763455136144,0.6427,3065.4,3064.7,3.2078]
[1763455136355,8.401,3065.3,3064.7,3.2078]
[1763455136539,11.6088,3065.3,3064.7,3.2078]
[1763455136846,3.2078,3066.1,3065.1,3.2078]
[1763455137257,3.2078,3066.1,3065.5,3.2078]
[1763455137447,7.538,3066.0,3065.5,3.2078]
[1763455137647,8.403,3065.9,3065.5,3.2078]
[1763455137848,3.2078,3066.1,3065.5,3.2078]
[1763455138050,0.7576,3065.6,3065.5,3.2078]
[1763455138347,0.7576,3065.6,3065.1,3.2078]
[1763455138549,7.929,3066.0,3065.1,3.2078]
[1763455138949,3.2078,3066.1,3065.1,3.2078]
[1763455139150,8.4,3065.9,3065.1,3.2078]
[1763455139350,0.7576,3065.6,3065.1,3.2078]
[1763455139653,3.2078,3065.3,3064.7,3.2078]
[1763455139955,8.396,3065.2,3064.7,3.2078]
[1763455140455,8.396,3065.2,3064.5,0.00818615]
[1763455140456,0.7576,3064.8,3064.5,0.00818615]
[1763455140654,0.7576,3064.8,3063.9,3.2078]
[1763455140854,2.865,3064.7,3063.9,3.2078]
[1763455141156,2.865,3064.7,3062.4,0.7187]
[1763455141157,8.398,3064.6,3064.3,3.2078]
[1763455141354,0.7576,3064.8,3064.3,3.2078]
[1763455141547,0.7576,3064.8,3064.3,3.21108085]
[1763455141752,3.9654,3065.6,3064.7,3.2078]
[1763455142250,3.9654,3065.6,3064.5,3.2078]
[1763455142951,0.0048962,3065.4,3064.9,3.2078]
[1763455143551,0.0048962,3065.4,3065.3,3.2078]
[1763455144251,0.00390468,3066.2,3065.3,12.4694]
[1763455144449,0.00390468,3066.2,3066.0,3.2078]
[1763455146755,0.00390468,3066.2,3065.8,0.0048962]
[1763455147255,3.2078,3066.0,3065.2,3.2078]
[1763455147447,0.7576,3065.4,3064.3,0.00328085]
[1763455147654,5.297,3065.3,3064.6,3.2078]
[1763455148158,8.387,3065.2,3064.6,3.2078]
[1763455148356,8.387,3065.2,3064.6,3.2126962]
[1763455148552,8.385,3065.1,3064.6,3.2126962]
[1763455148854,0.7576,3065.4,3064.6,3.2126962]
[1763455149054,8.385,3065.3,3064.6,3.2126962]
[1763455150257,0.7576,3065.4,3064.6,3.2126962]
[1763455150449,0.7576,3065.4,3065.0,3.2078]
[1763455150450,4.58,3065.3,3065.0,3.2078]
[1763455150646,3.2078,3065.9,3065.0,3.2078]
[1763455150850,8.378,3065.8,3065.0,3.2078]
[1763455151855,3.2078,3065.9,3065.4,3.2078]
[1763455152160,0.00390468,3066.2,3065.8,3.2078]
[1763455152663,0.00390468,3066.2,3066.0,0.52896]
[1763455152856,0.00390468,3066.2,3065.8,3.2078]
[1763455153165,0.00390468,3066.2,3065.9,0.82818849]
[1763455153353,0.00390468,3066.2,3065.8,3.2078]
[1763455153560,0.00390468,3066.2,3066.0,0.52896]
[1763455153759,0.00390468,3066.2,3065.8,3.2078]
[1763455153960,0.00390468,3066.2,3066.0,0.52895]
[1763455155067,0.0048962,3066.4,3066.2,0.52893]
[1763455155365,3.8505,3067.2,3066.6,0.52886]
[1763455155560,3.8505,3067.2,3066.5,0.52887]
[1763455155865,3.2078,3067.2,3066.7,3.2078]
[1763455156066,3.21114071,3067.2,3066.7,3.21018838]
[1763455156266,0.00334071,3067.2,3066.9,0.5288]
[1763455156667,0.00334071,3067.2,3067.0,0.52878]
[1763455156865,0.00334071,3067.2,3066.7,3.21508458]
[1763455158070,0.00334071,3067.2,3067.1,3.2078]
[1763455159672,4.071e-05,3067.2,3067.1,3.2078]
[1763455160168,4.071e-05,3067.2,3066.7,0.00728458]
[1763455160169,4.071e-05,3067.2,3066.7,3.21508458]
[1763455160370,4.071e-05,3067.2,3067.1,3.2078]
[1763455160770,0.7576,3068.1,3067.1,3.2078]
[1763455160771,3.2078,3068.2,3067.1,3.2078]
[1763455160972,3.2078,3068.6,3068.0,3.2078]
[1763455161570,3.2424,3068.7,3068.0,3.2078]
[1763455161771,3.25027119,3068.7,3068.0,3.20289781]
[1763455162276,11.60527119,3068.7,3068.0,3.20289781]
[1763455163777,8.364,3068.6,3068.0,3.20289781]
[1763455164075,3.25027119,3068.7,3068.0,3.20289781]
[1763455164076,0.04247119,3068.7,3068.0,3.20289781]
[1763455164576,0.04247119,3068.7,3068.0,3.2078]
[1763455165176,3.2078,3068.6,3068.0,3.2078]
[1763455165376,3.2078,3068.6,3067.6,3.2078]
[1763455165675,0.742,3068.0,3067.6,3.2078]
[1763455166774,0.742,3068.0,3067.2,3.2078]
[1763455167075,8.354,3067.9,3067.2,3.2078]
[1763455167464,0.7374,3067.4,3067.2,3.2078]
[1763455167680,3.9452,3067.4,3066.7,3.21508458]
[1763455168770,8.35,3067.3,3066.7,3.21508458]
[1763455169166,3.9452,3067.4,3066.7,3.21508458]
[1763455169362,4.267,3067.3,3066.7,3.21508458]
[1763455169573,3.9452,3067.4,3066.7,3.21508458]
[1763455169777,4.286,3067.3,3066.7,3.21508458]
[1763455170278,3.2078,3067.4,3066.9,0.5288]
[1763455170474,3.2078,3067.8,3067.1,3.2078]
[1763455170670,8.344,3067.7,3067.1,3.2078]
[1763455171771,3.2078,3067.8,3067.4,0.7364]
[1763455172173,3.2078,3067.8,3067.4,1.26512]
[1763455172373,3.2078,3067.8,3067.4,0.7364]
[1763455173165,3.2078,3067.8,3067.1,3.2078]
[1763455173373,8.339,3067.9,3067.1,3.2078]
[1763455173676,3.2078,3068.3,3067.2,0.52875]
[1763455173880,4.522,3068.2,3067.1,3.2078]
[1763455174073,4.522,3068.2,3067.2,0.52875]
[1763455174272,4.522,3068.2,3067.4,0.7364]
[1763455174680,8.329,3068.1,3067.4,0.7364]
[1763455175071,8.5476,3068.1,3067.1,3.2078]
[1763455175272,3.2078,3068.3,3067.1,3.2078]
[1763455175477,3.2078,3067.8,3067.1,3.2078]
[1763455176287,3.4264,3067.4,3066.7,3.21508458]
[1763455176780,3.2078,3067.0,3066.7,0.00728458]
[1763455177180,6.252,3066.9,3066.7,0.00728458]
[1763455177377,3.2078,3067.0,3066.7,0.00728458]
[1763455177880,5.256,3066.9,3066.7,0.00728458]
[1763455178273,3.2078,3067.0,3066.7,0.00728458]
[1763455178587,8.328,3066.9,3066.7,0.00728458]
[1763455178780,8.325,3066.8,3066.7,0.00728458]
[1763455179076,8.325,3067.1,3066.7,0.74368458]
[1763455179381,8.325,3067.1,3066.7,0.00728458]
[1763455180178,8.3258962,3067.2,3066.7,0.00728458]
[1763455180374,0.0048962,3067.2,3066.7,0.00728458]
[1763455180580,8.322,3067.1,3066.7,0.00728458]
[1763455181582,3.2078,3066.8,3066.2,3.2078]
[1763455181779,3.2078,3066.8,3065.8,3.2078]
[1763455181979,0.3687,3066.7,3065.8,3.2078]
[1763455182181,3.2078,3066.8,3066.2,0.52892]
[1763455182376,3.2078,3066.8,3066.0,0.7364]
[1763455182573,3.2078,3066.8,3066.1,0.0048962]
[1763455183476,6.98,3066.7,3066.1,0.0048962]
[1763455184480,8.315,3066.7,3066.1,0.5338262]
[1763455184782,8.312,3066.7,3066.1,0.0048962]
[1763455185183,11.5188,3066.8,3066.3,0.52891]
[1763455185379,11.5188,3066.8,3066.1,0.0048962]
[1763455185789,11.5188,3066.8,3066.1,0.5338362]
[1763455186286,11.5188,3066.8,3066.1,0.0048962]
[1763455187581,3.2078,3066.8,3066.1,0.5338362]
[1763455187887,5.988,3066.7,3066.4,0.03350094]
[1763455188891,1.2392,3066.6,3066.5,0.03350094]
[1763455189887,9.4616,3066.6,3066.5,0.03350094]
[1763455190082,1.2392,3066.1,3065.4,3.08509986]
[1763455190285,3.2078,3066.0,3065.4,3.08509986]
[1763455190494,4.467,3065.9,3065.4,0.7364]
[1763455190986,0.2622926,3065.7,3065.6,1.1739]
[1763455191190,0.26546215,3065.7,3065.6,1.17808728]
[1763455191384,0.26546215,3065.7,3065.6,1.70711728]
[1763455191984,0.26546215,3065.7,3065.6,1.17808728]
[1763455192581,0.26546215,3065.7,3065.6,7.70711728]
[1763455192787,0.26546215,3065.7,3065.6,8.53103829]
[1763455193187,0.26546215,3065.7,3065.6,1.70711728]
[1763455193488,0.26546215,3065.7,3065.6,1.17808728]
[1763455194088,0.26546215,3065.7,3065.6,1.70711728]
[1763455194290,0.26546215,3065.7,3065.6,2.0021488]
[1763455195279,0.26546215,3065.7,3065.6,1.17808728]
[1763455195480,0.26546215,3065.7,3065.6,1.70711728]
[1763455195685,0.26546215,3065.7,3065.6,1.17808728]
[1763455195893,0.26546215,3065.7,3065.6,0.00418728]
[1763455196098,8.54246215,3065.7,3065.6,0.00418728]
[1763455196285,9.78166215,3065.7,3065.6,0.00418728]
[1763455196792,9.78366215,3065.7,3065.6,0.00418728]
[1763455196989,1.50466215,3065.7,3065.6,0.00418728]
[1763455197187,9.78366215,3065.7,3065.6,0.00418728]
[1763455197994,9.78266215,3065.7,3065.6,0.00418728]
[1763455198192,1.50466215,3065.7,3065.6,0.00418728]
[1763455198387,9.78166215,3065.7,3065.6,0.00418728]
[1763455199506,1.50466215,3065.7,3065.6,0.00418728]
[1763455199696,9.77966215,3065.7,3065.6,0.00418728]
[1763455199892,8.53846215,3065.7,3065.6,1.17808728]
[1763455200293,0.26546215,3065.7,3065.6,1.70711728]
[1763455200595,8.53746215,3065.7,3065.6,1.17808728]
[1763455201100,3.2078,3066.1,3066.0,2.29036]
[1763455201394,6.22,3066.4,3066.0,2.29036]
[1763455201594,6.22,3066.4,3066.0,1.7614]
[1763455201797,6.22,3066.4,3066.0,2.29036]
[1763455202090,8.272,3066.3,3066.2,1.123]
[1763455202302,3.2078,3067.4,3066.8,1.123]
[1763455202494,3.2078,3067.4,3066.9,4.3308]
[1763455202791,3.458,3067.5,3067.1,1.123]
[1763455202991,3.2078,3067.8,3067.1,1.123]
[1763455203194,0.00758277,3067.2,3067.1,1.123]
[1763455207894,2.171,3067.8,3067.7,1.123]
[1763455208098,2.171,3067.8,3067.7,4.3308]
[1763455208299,0.0346,3068.7,3068.3,1.123]
[1763455208499,8.251,3068.6,3068.1,3.2078]
[1763455208691,0.0346,3068.7,3068.1,3.2078]
[1763455208893,0.04244269,3068.7,3068.1,3.21090312]
[1763455209197,3.802,3068.6,3068.1,3.73950312]
[1763455209590,3.802,3068.6,3068.1,3.21090312]
[1763455209795,8.254,3068.5,3068.1,3.21090312]
[1763455210302,8.251,3068.4,3068.1,3.21090312]
[1763455210901,0.04244269,3068.7,3068.1,3.21090312]
[1763455211600,2.799,3068.6,3068.1,3.21090312]
[1763455212100,0.04244269,3068.7,3068.1,3.21090312]
[1763455212298,2.791,3068.6,3068.1,3.21090312]
[1763455213097,0.04244269,3068.7,3068.1,3.21090312]
[1763455213296,0.04244269,3068.7,3068.1,3.73949312]
[1763455213498,0.04244269,3068.7,3068.6,1.123]
[1763455214204,1.0956,3068.4,3068.3,0.00488814]
[1763455214403,0.04244269,3068.7,3068.3,0.00488814]
[1763455214404,0.04244269,3068.7,3068.6,1.123]
[1763455215397,1.0956,3068.2,3067.7,3.2078]
[1763455215802,3.2126962,3068.7,3068.6,1.123]